bitfinex-derivatives/quotes_SOLF0:USTF0_20241005
["timestamp","ask_amount","ask_price","bid_price","bid_amount"]
[1728097374838,3.5286,141.69,141.68,1.20675567]
[1728097375039,7.58,141.69,141.66,18.85384252]
[1728097375237,7.58,141.69,141.67,1.20680691]
[1728097375439,7.58,141.69,141.67,4.73590691]
[1728097375739,7.58,141.69,141.67,3.5291]
[1728097377147,7.58,141.69,141.66,18.85384252]
[1728097377339,7.58,141.67,141.65,0.12502]
[1728097377638,7.58,141.68,141.65,0.12502]
[1728097377841,7.58,141.68,141.66,1.20688847]
[1728097378537,5.88,141.72,141.66,1.20688847]
[1728097378538,392.83086166,142.07,141.66,1.20688847]
[1728097378745,7.58,141.7,141.67,3.529]
[1728097379334,7.58,141.71,141.66,7.58]
[1728097379642,7.58,141.71,141.67,1.20682334]
[1728097379943,7.58,141.71,141.68,3.5286]
[1728097380242,7.58,141.71,141.66,7.58]
[1728097380441,7.58,141.71,141.67,4.7359143]
[1728097380636,7.58,141.71,141.66,7.58]
[1728097381138,7.58,141.71,141.69,3.5284]
[1728097381340,9.0934,141.74,141.68,7.58]
[1728097381535,7.58,141.72,141.69,3.5284]
[1728097381735,7.58,141.73,141.69,3.5284]
[1728097382036,1.3651,141.78,141.69,3.5284]
[1728097382234,7.58,141.74,141.69,7.58]
[1728097382438,7.58,141.73,141.68,7.58]
[1728097382639,7.58,141.73,141.7,3.5282]
[1728097382954,7.58,141.73,141.67,6.38]
[1728097383135,7.58,141.73,141.68,7.58]
[1728097384541,7.58,141.73,141.7,3.5282]
[1728097385341,4.1263,141.78,141.67,6.38]
[1728097385534,7.58,141.75,141.7,7.58]
[1728097385936,3.65172,141.77,141.73,3.5276]
[1728097386247,7.58,141.76,141.72,7.58]
[1728097386446,7.58,141.76,141.72,11.1076]
[1728097386641,7.58,141.76,141.72,7.58]
[1728097387139,7.58,141.75,141.71,7.58]
[1728097387548,7.58,141.74,141.69,3.5284]
[1728097387747,7.58,141.74,141.69,7.58]
[1728097387941,7.58,141.75,141.69,7.58]
[1728097388250,7.58,141.75,141.71,7.58]
[1728097388837,3.5269,141.76,141.72,3.5276]
[1728097389142,7.58,141.75,141.72,3.5276]
[1728097390740,3.5274,141.74,141.7,11.1081]
[1728097391251,7.58,141.72,141.68,18.85384252]
[1728097391549,7.58,141.72,141.69,3.5285]
[1728097392549,7.58,141.72,141.69,22.38234252]
[1728097393048,3.5284,141.7,141.69,18.85384252]
[1728097393250,7.58,141.71,141.67,18.85384252]
[1728097393552,7.58,141.71,141.66,11.6165]
[1728097393752,11.1082,141.71,141.66,11.6165]
[1728097394246,7.58,141.71,141.66,11.6165]
[1728097394436,7.58,141.71,141.68,3.5288]
[1728097395449,7.58,141.72,141.69,3.5284]
[1728097395649,7.58,141.73,141.69,7.58]
[1728097395850,1.3078,141.76,141.69,7.58]
[1728097396154,11.1074,141.74,141.7,3.5283]
[1728097396348,1.3078,141.76,141.71,7.58]
[1728097396556,11.1072,141.75,141.71,11.1079]
[1728097397157,11.1072,141.75,141.72,3.5278]
[1728097397549,3.5279,141.72,141.65,18.97886252]
[1728097397847,7.58,141.73,141.68,7.58]
[1728097398657,7.6878,141.76,141.69,7.58]
[1728097398859,7.58,141.74,141.69,7.58]
[1728097399552,3.5273,141.75,141.71,3.528]
[1728097399749,7.58,141.75,141.7,7.58]
[1728097400056,7.58,141.75,141.72,3.5277]
[1728097402856,0.12502,141.77,141.73,7.58]
[1728097403362,0.12502,141.77,141.75,3.5271]
[1728097403957,0.12502,141.77,141.73,7.58]
[1728097403958,0.12502,141.77,141.74,3.5273]
[1728097404755,0.12502,141.77,141.75,3.5269]
[1728097404955,0.12502,141.77,141.74,7.58]
[1728097405259,7.58,141.79,141.72,6.38]
[1728097405260,0.12502,141.83,141.76,7.58]
[1728097405567,0.12502,141.83,141.8,7.58]
[1728097406059,0.12502,141.83,141.79,9.906]
[1728097406364,0.12502,141.83,141.79,13.96]
[1728097406862,0.12502,141.83,141.81,7.58]
[1728097407177,7.70502,141.89,141.82,7.58]
[1728097407353,3.64872,141.89,141.84,7.58]
[1728097407557,3.64872,141.89,141.85,3.5245]
[1728097407762,0.12502,141.89,141.87,7.58]
[1728097407951,0.12502,141.89,141.88,13.84]
[1728097408161,0.12502,141.89,141.88,17.3639]
[1728097408461,7.58,141.94,141.88,13.84]
[1728097408770,7.58,141.94,141.91,3.5231]
[1728097409261,7.70502,141.95,141.91,3.5231]
[1728097409464,7.70502,141.95,141.92,3.5228]
[1728097409665,0.12502,141.95,141.92,6.26]
[1728097409866,0.12502,141.95,141.92,13.84]
[1728097410159,0.12502,141.95,141.93,3.5224]
[1728097410660,0.12502,141.95,141.87,6.26]
[1728097410661,7.58,141.94,141.87,6.26]
[1728097410862,7.58,141.88,141.77,111.9601474]
[1728097411063,9.725765,141.94,141.81,6.26]
[1728097411064,7.58,141.84,141.81,6.26]
[1728097411256,2.8717,141.93,141.81,6.26]
[1728097411257,7.58,141.85,141.81,6.26]
[1728097411566,3.5245,141.86,141.81,9.7855]
[1728097411862,3.5241,141.88,141.82,3.5252]
[1728097412167,3.5241,141.88,141.81,18.1]
[1728097412667,3.5241,141.88,141.83,3.64992]
[1728097413556,3.5241,141.88,141.83,0.12502]
[1728097413863,3.5241,141.88,141.84,3.5248]
[1728097414359,3.5241,141.88,141.83,0.12502]
[1728097415564,11.84,141.89,141.83,0.12502]
[1728097415764,9.1317,141.93,141.83,11.96502]
[1728097415765,11.84,141.91,141.83,11.96502]
[1728097415965,14.7117,141.93,141.83,11.96502]
[1728097416166,3.5246,141.86,141.83,6.38502]
[1728097417360,11.84,141.89,141.83,0.12502]
[1728097417564,11.84,141.87,141.83,0.12502]
[1728097418372,3.5248,141.85,141.83,0.12502]
[1728097419770,11.84,141.87,141.83,0.12502]
[1728097419965,11.84,141.89,141.83,0.12502]
[1728097420172,11.84,141.91,141.83,11.96502]
[1728097420568,11.84,141.91,141.84,1.3738]
[1728097420768,14.7117,141.93,141.85,6.26]
[1728097420967,6.26,141.94,141.85,6.26]
[1728097420968,11.84,141.94,141.85,6.26]
[1728097421173,11.84,141.93,141.85,6.26]
[1728097421371,3.5239,141.88,141.85,6.26]
[1728097421568,11.84,141.91,141.85,6.26]
[1728097423071,3.5235,141.9,141.86,3.5243]
[1728097423483,11.84,141.93,141.85,6.26]
[1728097423778,3.5226,141.93,141.89,3.5235]
[1728097423977,3.5226,141.93,141.89,9.7835]
[1728097425983,11.96502,141.95,141.89,6.26]
[1728097426178,3.5225,141.94,141.9,3.5232]
[1728097426487,0.12502,141.95,141.89,6.26]
[1728097426876,3.64722,141.95,141.91,3.5229]
[1728097427078,0.12502,141.95,141.89,6.26]
[1728097427277,0.12502,141.95,141.89,18.1]
[1728097428275,0.12502,141.95,141.92,3.5227]
[1728097428677,0.12502,141.95,141.93,6.26]
[1728097429479,0.12502,141.95,141.93,9.7826]
[1728097431579,0.12502,141.95,141.94,3.5224]
[1728097435495,0.12502,141.95,141.94,9.7824]
[1728097436598,0.12502,142.01,141.94,6.26]
[1728097436893,0.12502,142.01,141.96,3.5218]
[1728097436894,3.521,142.0,141.96,3.5218]
[1728097437282,0.12502,142.01,141.94,7.6693]
[1728097437487,0.12502,142.01,141.97,3.5215]
[1728097437890,3.64572,142.01,141.97,3.5215]
[1728097438195,3.64572,142.01,141.98,6.14]
[1728097438998,0.12502,142.01,141.98,6.14]
[1728097439291,0.12502,142.07,141.99,11.84]
[1728097439485,0.12502,142.07,142.04,3.5198]
[1728097439688,0.12502,142.07,142.05,6.14]
[1728097440189,0.12502,142.07,142.06,3.5194]
[1728097440586,0.12502,142.13,142.06,3.5194]
[1728097440587,3.64272,142.13,142.09,3.5187]
[1728097440780,3.64272,142.13,142.08,6.14]
[1728097441292,3.64272,142.13,142.08,9.6587]
[1728097441687,0.12502,142.13,142.08,6.14]
[1728097442090,0.12502,142.13,142.1,3.5183]
[1728097442884,0.12502,142.13,142.11,3.5181]
[1728097443085,0.12502,142.13,142.12,6.14]
[1728097443791,0.12502,142.13,142.12,9.6579]
[1728097446597,0.12502,142.13,142.12,6.14]
[1728097447301,0.12502,142.13,142.11,9.658]
[1728097448089,0.12502,142.13,142.08,76.0]
[1728097448402,0.12502,142.13,142.09,6.14]
[1728097449106,0.12502,142.13,142.1,3.5184]
[1728097449900,0.12502,142.13,142.1,3.5182]
[1728097451000,0.12502,142.13,142.08,76.0]
[1728097451198,0.12502,142.13,142.09,6.14]
[1728097451395,0.12502,142.13,142.1,6.14]
[1728097451702,3.5182,142.11,142.08,76.0]
[1728097451897,3.5182,142.11,142.09,6.14]
[1728097453302,0.12502,142.13,142.09,6.14]
[1728097455199,3.5179,142.12,142.09,9.6587]
[1728097455499,0.12502,142.13,142.09,6.14]
[1728097455696,0.12502,142.13,142.09,17.98]
[1728097455903,0.12502,142.13,142.11,3.5182]
[1728097456305,0.12502,142.13,142.09,21.4985]
[1728097457003,3.64282,142.13,142.09,17.98]
[1728097457205,3.64282,142.13,142.1,3.5184]
[1728097457612,0.12502,142.13,142.1,3.5184]
[1728097459511,0.12502,142.13,142.09,17.98]
[1728097459925,0.12502,142.13,142.11,11.84]
[1728097460338,0.12502,142.13,142.12,3.5179]
[1728097462425,0.12518,142.15,142.14,15.3574]
[1728097462621,0.12518,142.15,142.14,21.4774]
[1728097467524,0.12502,142.19,142.14,17.96]
[1728097467723,0.12502,142.19,142.16,3.5167]
[1728097467929,0.12502,142.19,142.15,11.84]
[1728097468131,0.12502,142.19,142.18,3.5164]
[1728097468330,0.12502,142.19,142.18,5.96]
[1728097470118,0.12502,142.19,142.18,9.4764]
[1728097478135,0.12502,142.19,142.18,5.96]
[1728097478337,0.12502,142.19,142.15,11.84]
[1728097478542,0.12502,142.19,142.15,5.96]
[1728097478844,3.5169,142.17,142.15,5.96]
[1728097480440,0.12502,142.19,142.15,5.96]
[1728097480441,0.12502,142.19,142.16,11.84]
[1728097480642,3.64132,142.19,142.16,11.84]
[1728097481036,0.12502,142.19,142.17,3.5165]
[1728097481435,0.12502,142.19,142.16,11.84]
[1728097481639,0.12502,142.19,142.16,17.8]
[1728097482332,3.64142,142.19,142.16,21.3169]
[1728097482535,3.64142,142.19,142.16,5.96]
[1728097482733,0.12502,142.19,142.16,5.96]
[1728097483439,0.12502,142.19,142.17,11.84]
[1728097483741,3.64132,142.19,142.17,11.84]
[1728097484644,0.12502,142.19,142.17,15.3567]
[1728097484839,0.12502,142.19,142.17,11.84]
[1728097486037,0.12502,142.19,142.17,15.3567]
[1728097486639,0.12502,142.19,142.17,11.84]
[1728097487629,3.5164,142.18,142.17,11.84]
[1728097488035,3.5164,142.18,142.15,17.8]
[1728097488438,0.12502,142.19,142.15,17.8]
[1728097488948,0.12502,142.19,142.15,21.3171]
[1728097490039,3.5166,142.18,142.15,21.3171]
[1728097490645,21.50081805,142.19,142.07,7.46714067]
[1728097490845,1.3157,142.17,142.09,11.84]
[1728097491543,13.1557,142.17,142.08,5.96]
[1728097491939,11.84,142.13,142.07,0.12502]
[1728097492141,2.7325,142.12,142.07,0.12502]
[1728097492342,6.2506,142.12,142.08,3.5188]
[1728097492644,2.7325,142.12,142.07,0.12502]
[1728097493149,3.5185,142.1,142.07,3.64422]
[1728097493452,2.7325,142.12,142.07,3.64422]
[1728097493845,3.5183,142.11,142.07,3.64422]
[1728097495746,2.7325,142.12,142.07,3.64422]
[1728097495747,5.96,142.15,142.08,11.84]
[1728097495944,5.96,142.15,142.08,17.8]
[1728097496143,3.5174,142.15,142.1,3.5184]
[1728097496334,7.1557,142.17,142.1,11.84]
[1728097497135,3.5175,142.14,142.1,11.84]
[1728097497945,3.5173,142.15,142.11,3.5181]
[1728097499241,1.3157,142.17,142.1,11.84]
[1728097499552,1.3157,142.17,142.12,3.5179]
[1728097500145,3.5172,142.16,142.12,3.5179]
[1728097500356,1.3157,142.17,142.12,3.5179]
[1728097500649,1.3157,142.17,142.11,3.5181]
[1728097500850,3.5173,142.15,142.11,3.5181]
[1728097501237,0.12502,142.19,142.13,11.84]
[1728097501439,3.64132,142.19,142.13,11.84]
[1728097501643,0.12502,142.19,142.13,3.5175]
[1728097502047,0.12502,142.19,142.12,17.68]
[1728097502245,0.12502,142.19,142.13,3.5176]
[1728097502639,3.5169,142.17,142.13,3.5176]
[1728097502837,3.5169,142.17,142.14,3.5174]
[1728097503248,0.12502,142.19,142.12,17.68]
[1728097503451,0.12502,142.19,142.16,3.5168]
[1728097503746,0.12502,142.19,142.14,11.84]
[1728097504152,0.12502,142.19,142.18,3.5164]
[1728097506547,0.12502,142.19,142.18,9.3564]
[1728097508049,0.12502,142.25,142.22,3.5153]
[1728097508348,0.12502,142.25,142.22,17.68]
[1728097508554,0.12502,142.25,142.24,15.355]
[1728097510546,0.12502,142.25,142.16,4.0817]
[1728097510751,0.12502,142.25,142.18,11.84]
[1728097510951,3.5152,142.23,142.18,11.84]
[1728097511253,0.12502,142.25,142.18,11.84]
[1728097511455,3.5157,142.22,142.18,11.84]
[1728097511644,11.84,142.24,142.17,5.84]
[1728097512546,0.12502,142.25,142.17,5.84]
[1728097512750,11.84,142.24,142.17,5.84]
[1728097513452,3.5155,142.22,142.18,3.5164]
[1728097513656,0.12502,142.25,142.17,5.84]
[1728097513861,3.63982,142.25,142.21,3.5156]
[1728097514055,0.12502,142.25,142.18,14.5575]
[1728097514358,3.63992,142.25,142.21,3.5155]
[1728097514658,3.63992,142.25,142.21,9.3555]
[1728097516757,0.12502,142.25,142.21,5.84]
[1728097517148,0.12502,142.25,142.22,18.89]
[1728097517353,0.12502,142.25,142.24,3.515]
[1728097518552,0.12502,142.25,142.22,22.4053]
[1728097518752,0.12502,142.25,142.22,18.89]
[1728097519462,0.12502,142.25,142.23,3.515]
[1728097519651,0.12502,142.25,142.22,18.89]
[1728097520154,0.12502,142.25,142.23,3.5152]
[1728097520560,0.12502,142.25,142.22,3.5154]
[1728097521351,0.12502,142.25,142.21,5.84]
[1728097522064,0.12502,142.25,142.23,3.5151]
[1728097522359,0.12502,142.25,142.21,5.84]
[1728097522754,3.5158,142.21,142.19,5.84]
[1728097522957,0.12502,142.25,142.18,5.84]
[1728097524062,3.5154,142.23,142.18,5.84]
[1728097524655,3.5154,142.23,142.19,3.516]
[1728097524958,3.5155,142.22,142.19,3.516]
[1728097526662,3.5153,142.23,142.19,3.516]
[1728097527363,3.63982,142.25,142.21,3.5155]
[1728097528472,3.515,142.24,142.21,3.5155]
[1728097528863,3.515,142.24,142.2,3.5159]
[1728097529668,0.12502,142.25,142.18,5.84]
[1728097529867,5.86,142.24,142.15,7.2374]
[1728097530977,7.2266,142.24,142.16,3.5169]
[1728097531164,7.2266,142.24,142.15,7.2374]
[1728097531862,1.3666,142.24,142.15,26.1274]
[1728097532069,0.12502,142.25,142.17,18.89]
[1728097532574,3.5152,142.23,142.2,3.5159]
[1728097532768,0.12502,142.25,142.2,3.5159]
[1728097533067,3.515,142.24,142.2,3.5159]
[1728097533268,3.515,142.24,142.21,3.5157]
[1728097534973,0.12502,142.25,142.23,3.515]
[1728097535177,0.12502,142.25,142.23,9.375]
[1728097535662,0.12502,142.25,142.23,5.86]
[1728097536271,0.12502,142.25,142.24,3.515]
[1728097537269,0.12502,142.31,142.27,3.514]
[1728097537581,3.63832,142.31,142.27,17.67]
[1728097537766,0.12502,142.31,142.29,11.81]
[1728097538573,0.12502,142.31,142.3,3.5135]
[1728097538768,0.12502,142.31,142.29,11.81]
[1728097539673,0.12502,142.31,142.28,18.89]
[1728097540065,0.12502,142.31,142.3,3.5135]
[1728097541769,0.12502,142.31,142.28,18.89]
[1728097541973,0.12502,142.31,142.27,1.4446]
[1728097542272,0.12502,142.31,142.28,5.86]
[1728097543581,3.5137,142.3,142.28,5.86]
[1728097543781,0.12502,142.31,142.28,5.86]
[1728097544781,0.12502,142.31,142.23,18.89]
[1728097544977,0.12502,142.31,142.24,5.86]
[1728097545682,19.01502,142.31,142.24,5.86]
[1728097546076,3.5147,142.25,142.21,75.9]
[1728097546282,19.01502,142.31,142.22,5.86]
[1728097548191,3.515,142.24,142.22,5.86]
[1728097549274,3.5149,142.25,142.22,5.86]
[1728097550679,3.515,142.24,142.22,5.86]
[1728097551282,19.01502,142.31,142.22,5.86]
[1728097554094,3.5146,142.26,142.22,5.86]
[1728097554284,3.5146,142.26,142.22,9.3754]
[1728097555380,3.5148,142.25,142.22,5.86]
[1728097555584,19.01502,142.31,142.22,5.86]
[1728097555979,3.515,142.24,142.22,5.86]
[1728097558291,19.01502,142.31,142.22,5.86]
[1728097558691,3.515,142.24,142.22,5.86]
[1728097560695,11.81,142.26,142.19,0.12502]
[1728097561099,5.64,142.27,142.19,0.12502]
[1728097561386,3.5154,142.23,142.19,3.64112]
[1728097561693,3.5154,142.23,142.19,0.12502]
[1728097562285,14.5213,142.28,142.19,0.12502]
[1728097562485,20.1613,142.28,142.2,3.5158]
[1728097562685,8.3513,142.28,142.2,3.5158]
[1728097562884,20.1613,142.28,142.2,3.5158]
[1728097563393,3.5151,142.24,142.2,3.5158]
[1728097565985,3.5159,142.2,142.19,0.12502]
[1728097569909,3.5161,142.2,142.12,15.3278]
[1728097570091,11.81,142.2,142.12,5.64]
[1728097570402,17.45,142.2,142.12,5.64]
[1728097570691,11.81,142.18,142.12,5.64]
[1728097571194,17.45,142.2,142.12,17.45]
[1728097571396,5.64,142.21,142.13,11.93502]
[1728097571793,3.5167,142.17,142.13,15.45262]
[1728097574196,5.64,142.21,142.14,3.5174]
[1728097574589,5.64,142.21,142.13,0.12502]
[1728097574794,3.5172,142.15,142.13,0.12502]
[1728097575001,5.64,142.21,142.13,0.12502]
[1728097575399,14.5012,142.22,142.14,11.81]
[1728097575697,6.9796,142.24,142.14,11.81]
[1728097576002,3.5157,142.22,142.18,3.5164]
[1728097576196,6.9796,142.24,142.17,5.66]
[1728097576703,3.5159,142.21,142.17,9.1765]
[1728097577204,3.5155,142.22,142.18,3.5163]
[1728097578200,3.5158,142.21,142.17,9.1766]
[1728097580702,3.5158,142.21,142.18,3.5164]
[1728097586107,0.12502,142.25,142.18,11.81]
[1728097586507,0.12502,142.25,142.18,13.1492]
[1728097586802,3.5151,142.24,142.2,3.5158]
[1728097587008,3.5151,142.24,142.19,5.66]
[1728097587399,3.5151,142.24,142.2,3.5158]
[1728097587604,0.12502,142.25,142.19,5.66]
[1728097587912,11.93502,142.25,142.19,5.66]
[1728097588106,11.81,142.23,142.15,5.58]
[1728097588506,11.81,142.21,142.14,5.58]
[1728097589611,3.5168,142.17,142.14,5.58]
[1728097590011,11.81,142.21,142.13,0.12502]
[1728097590218,3.5172,142.15,142.13,5.70502]
[1728097591217,5.58,142.2,142.13,5.70502]
[1728097591406,3.517,142.16,142.13,5.70502]
[1728097592018,3.517,142.16,142.13,9.22272]
[1728097592417,3.517,142.16,142.13,5.70502]
[1728097593120,5.58,142.2,142.13,0.12502]
[1728097593121,3.5174,142.14,142.13,0.12502]
[1728097593305,11.81,142.17,142.13,0.12502]
[1728097593511,3.5174,142.14,142.13,0.12502]
[1728097594324,94.27291334,142.19,142.13,0.12502]
[1728097594510,82.46291334,142.19,142.13,3.64252]
[1728097595417,3.5168,142.17,142.14,3.5174]
[1728097595622,3.5168,142.17,142.13,0.12502]
[1728097596215,3.5168,142.17,142.13,3.64252]
[1728097597222,82.46291334,142.19,142.13,0.12502]
[1728097597419,3.517,142.16,142.13,0.12502]
[1728097597918,3.517,142.16,142.13,3.64272]
[1728097598935,3.517,142.16,142.13,0.12502]
[1728097599942,3.5174,142.14,142.13,0.12502]
[1728097604229,3.5185,142.1,142.07,9.22412]
[1728097604429,3.5185,142.1,142.07,5.70502]
[1728097605342,3.5178,142.13,142.07,9.22392]
[1728097605644,11.81,142.15,142.07,9.22392]
[1728097606139,11.81,142.15,142.07,17.51502]
[1728097606438,5.58,142.17,142.09,11.81]
[1728097607146,3.5174,142.15,142.11,3.518]
[1728097609441,3.5179,142.13,142.09,3.5185]
[1728097609949,3.5176,142.14,142.11,3.5181]
[1728097610446,11.81,142.12,142.07,0.12502]
[1728097610746,11.81,142.09,142.07,0.12502]
[1728097611138,3.5189,142.08,142.07,0.12502]
[1728097611339,15.3289,142.08,142.07,0.12502]
[1728097611843,15.3289,142.08,142.01,0.12502]
[1728097611844,11.81,142.08,142.01,0.12502]
[1728097612039,17.39,142.08,142.01,0.12502]
[1728097612445,3.5196,142.06,142.02,3.5203]
[1728097612850,16.0236,142.12,142.02,11.81]
[1728097613047,16.0236,142.12,142.02,13.2154]
[1728097613352,5.58,142.12,142.03,11.81]
[1728097613540,3.5183,142.11,142.07,3.5191]
[1728097613736,11.93502,142.13,142.07,3.5191]
[1728097613939,17.51502,142.13,142.07,3.5191]
[1728097614150,3.5183,142.11,142.07,3.5191]
[1728097614547,17.51502,142.13,142.04,5.58]
[1728097614847,3.5186,142.1,142.06,3.5194]
[1728097615543,17.51502,142.13,142.05,3.5195]
[1728097615850,5.58,142.12,142.05,3.5195]
[1728097616053,5.58,142.12,142.04,5.58]
[1728097616246,3.5186,142.1,142.06,3.5194]
[1728097617537,5.58,142.12,142.04,5.58]
[1728097617538,3.5187,142.09,142.05,3.5196]
[1728097619556,3.519,142.08,142.05,3.5196]
[1728097619756,3.519,142.08,142.03,11.81]
[1728097620057,3.5192,142.07,142.04,3.5198]
[1728097620246,3.5192,142.07,142.03,5.48]
[1728097620553,3.5192,142.07,142.03,3.52]
[1728097621657,3.519,142.08,142.04,3.5197]
[1728097621950,5.48,142.11,142.02,1.4054]
[1728097622156,3.5185,142.1,142.06,3.5193]
[1728097622458,3.5185,142.1,142.02,1.4054]
[1728097622956,3.5183,142.11,142.03,11.81]
[1728097623256,3.5183,142.11,142.07,3.519]
[1728097624956,11.93502,142.13,142.07,3.519]
[1728097625150,3.5185,142.1,142.07,3.519]
[1728097625652,3.5185,142.1,142.05,5.48]
[1728097625858,3.5187,142.09,142.05,5.48]
[1728097626161,11.81,142.1,142.05,5.48]
[1728097626363,17.29,142.1,142.04,3.5199]
[1728097626559,17.29,142.1,142.02,6.8854]
[1728097626947,3.5194,142.06,142.02,6.8854]
[1728097627260,11.81,142.06,142.01,0.12502]
[1728097627470,3.5204,142.03,142.01,0.12502]
[1728097627764,11.81,142.06,142.01,0.12502]
[1728097627765,17.29,142.06,142.01,0.12502]
[1728097628458,3.5203,142.03,142.01,0.12502]
[1728097628758,17.29,142.06,142.01,0.12502]
[1728097629163,11.81,142.04,142.01,0.12502]
[1728097629770,3.5204,142.02,142.01,0.12502]
[1728097630457,15.3304,142.02,142.01,0.12502]
[1728097630760,11.81,142.02,141.95,0.12502]
[1728097630950,11.81,142.0,141.95,0.12502]
[1728097632164,3.5214,141.98,141.95,0.12502]
[1728097632359,11.81,142.0,141.95,0.12502]
[1728097632661,3.5217,141.97,141.95,0.12502]
[1728097632852,11.81,142.0,141.95,0.12502]
[1728097633050,11.81,141.98,141.95,0.12502]
[1728097633247,3.5219,141.96,141.95,0.12502]
[1728097634665,11.81,141.98,141.95,0.12502]
[1728097634666,3.5217,141.97,141.95,0.12502]
[1728097634857,9.0017,141.97,141.95,0.12502]
[1728097635458,3.5219,141.96,141.95,0.12502]
[1728097635963,15.3319,141.96,141.95,0.12502]
[1728097636861,11.81,141.96,141.89,0.12502]
[1728097639061,3.5224,141.94,141.89,3.64852]
[1728097640258,11.81,141.96,141.89,3.64852]
[1728097640458,3.5227,141.93,141.89,3.64852]
[1728097640660,11.81,141.94,141.89,0.12502]
[1728097640965,3.5234,141.9,141.89,0.12502]
[1728097641163,17.31,141.92,141.89,0.12502]
[1728097642168,13.1494,141.96,141.9,3.5233]
[1728097642358,5.5,141.95,141.89,0.12502]
[1728097643465,3.5224,141.94,141.91,3.5231]
[1728097643666,5.5,141.95,141.91,3.5231]
[1728097644463,13.1494,141.96,141.92,3.5228]
[1728097644464,17.31,141.96,141.92,3.5228]
[1728097644665,5.5,141.96,141.89,0.12502]
[1728097644969,9.022,141.96,141.93,3.5226]
[1728097645268,5.5,141.96,141.93,3.5226]
[1728097645666,15.3318,141.97,141.93,3.5226]
[1728097645667,20.8318,141.97,141.93,3.5226]
[1728097645863,17.31,141.97,141.89,0.12502]
[1728097646070,17.31,141.97,141.91,3.523]
[1728097646963,3.5222,141.95,141.91,3.523]
[1728097647473,3.5224,141.94,141.9,3.5233]
[1728097647672,11.81,141.96,141.89,0.12502]
[1728097648072,3.5228,141.93,141.89,0.12502]
[1728097648372,3.5228,141.93,141.89,3.64862]
[1728097648869,11.81,141.96,141.89,3.64862]
[1728097649071,3.5229,141.92,141.89,3.64862]
[1728097650070,3.5224,141.94,141.9,3.5234]
[1728097651064,11.81,141.96,141.89,0.12502]
[1728097651367,11.81,141.96,141.89,3.64862]
[1728097651674,11.81,141.94,141.89,3.64862]
[1728097652075,3.5229,141.92,141.89,3.64862]
[1728097652668,3.523,141.92,141.89,3.64862]
[1728097653978,8.9828,141.93,141.89,3.64862]
[1728097655475,11.81,141.9,141.84,1.3265]
[1728097655670,11.81,141.88,141.84,1.3265]
[1728097655978,11.81,141.88,141.83,0.12502]
[1728097656180,3.5243,141.87,141.83,3.65002]
[1728097656472,11.81,141.86,141.83,0.12502]